Workbook

Sheet Start
B6: Herzlich Willkommen im Bewertungstool für energie- und materialflusseffiziente Fabriken. Dieser Software-Demonstrator entstand im Rahmen des Forschungsprojekts "Ableitung von Empfehlungen zur energie- und materilflusseffizienten Strukturierung und synergetischen Gestaltung von Fabriken", kurz "Energie- und materialflusseffiziente Fabrikplanung (EnMaFap)". Nachdem Sie die Organisationsform Ihrer geplanten Fabrik angegeben haben und evtl. Fertigungs- und Montagelinien definiert haben, können Sie die Materialflussbeziehungen festlegen und anschließend Fabriklayoutvarianten eingeben. Diese Varianten können Sie abschließend bewerten und vergleichen. Durch Klicken auf den Reiter "Organisationsformen festlegen" beginnen Sie die Planung. Viel Erfolg beim Planen Ihrer energie- und materialflusseffizienten Fabrik!
F17: Das IGF-Vorhaben 17077N der Forschungsvereinigung Bundesvereinigung Logistik e.V. - BVL wurde über die AiF im Rahmen des Programms zur Förderung der Industriellen Gemeinschaftsforschung (IGF) vom Bundesministerium für Wirtschaft und Technologie aufgrund eines Beschlusses des Deutschen Bundestages gefördert.

Sheet Organisationsformen
B6: Organisationsform der Fertigung: | E6: Werkstattfertigung | G6: Organisationsform der Montage: | J6: Werkstattmontage
B8: *Fertigung* | E8: 100 W/m²

Sheet Bereichsbeziehungen
B3: sehr hoch | C3: hoch | D3: mittel | E3: niedr. | F3: sehr niedr.
B5: Bitte tragen Sie in die Materialflussmatrix die Materialflussbeziehungen (Zahlenwerte als Intensitätsindikator) zwischen den angegebenen Bereichen ein. Wenn keine Beziehung besteht, tragen Sie bitte eine "0" ein.
C7: von | D7: *Fertigung* | E7: Montage | F7: Wareneingang | G7: Warenausgang | H7: Produktions-lager | I7: Büro- und Sozialräume | J7: Technik | K7: Summe
B8: nach
B9: *Fertigung* | K9: =SUM(D9:J9) -> 0
B10: Montage | K10: 0
B11: Wareneingang | K11: 0
B12: Warenausgang | K12: 0
B13: Produktionslager | K13: 0
B14: Büro- und Sozialräume | K14: 0
B15: Technik | K15: 0
B16: Summe | D16: =SUM(D9:D15) -> 0 | E16: 0 | F16: 0 | G16: 0 | H16: 0 | I16: 0 | J16: 0 | K16: 0
B18: Bitte tragen Sie in die Kommunikationsflussmatrix die Kommunikationsbeziehungen ("sehr hoch", "hoch", "mittel", "niedrig", "sehr niedrig") zwischen den angegebenen Bereichen ein.
C19: von | D19: *Fertigung* | E19: Montage | F19: Wareneingang | G19: Warenausgang | H19: Produktions-lager | I19: Büro- und Sozialräume | J19: Technik | K19: Summe
B20: nach
B21: *Fertigung* | K21: =SUM(D21:J21) -> 0
B22: Montage | K22: 0
B23: Wareneingang | K23: 0
B24: Warenausgang | K24: 0
B25: Produktionslager | K25: 0
B26: Büro- und Sozialräume | K26: 0
B27: Technik | K27: 0
B28: Summe | D28: =SUM(D21:D27) -> 0 | E28: 0 | F28: 0 | G28: 0 | H28: 0 | I28: 0 | J28: 0 | K28: 0

Sheet Layout
AN6: Layout zeichnen
AL20: Bereichsgröße [B x H] | AN20: aktuelle Auswahl
AL23: Bereichsbezeichnung

Sheet Visualisierung (hidden)

Sheet Benchmark
F2: 70
F3: 30
B6: Gewählte Gewichtung für die Fachsichten:
B7: Architektur | C7: 25 | D7: %
B8: Bauphysik | C8: 25 | D8: %
B9: Logistik | C9: 50 | D9: %

Sheet Technik (hidden)
D2: ID-Card | E2: Technik
B4: Allgemeine Nutzungsrandbedingungen1 | C4: Nutzungszeiten
E5: Einheit | F5: Wert | G5: Erläuterungen
C6: Jährliche durchschnittliche Nutzungszeit (von xx:xx Uhr bis xx:xx Uhr) | E6: Uhrzeit | F6: 07:00 Uhr bis 16:00 Uhr
C7: Anzahl jährliche Nutzungstage | E7: d/a | F7: 250
C8: Jährliche Nutzungsstunden zur Tagzeit (Intervall: 06:00 Uhr bis 22:00 Uhr) | E8: h/a | F8: 2192
C9: Jährliche Nutzungsstunden zur Nachtzeit (Intervall: 22:00 Uhr bis 06:00 Uhr) | E9: h/a | F9: 58
C10: Tägliche Betriebszeit der Raumlufttechnik (RLT) und Kühlung (von xx:xx Uhr bis xx:xx Uhr) | E10: Uhrzeit | F10: 05:00 Uhr bis 16:00 Uhr
C11: Tägliche Betriebszeit der Heizung (von xx:xx Uhr bis xx:xx Uhr) | E11: Uhrzeit | F11: 05:00 Uhr bis 16:00 Uhr
C12: Jährliche durchschnittliche Betriebstage jeweils für | E12: - | F12: - | G12: -
D13: RLT | E13: d/a | F13: 250
D14: Heizung | E14: d/a | F14: 250
D15: Kühlung | E15: d/a | F15: 250
B17: Prozesse & Logistik | C17: Ablauftechnische und organisatorische Anforderungen und Charakteristika
E18: Beschreibung
C19: Modulbeschreibung | E19: Geschlossener Raum, geringer personeller Einsatz (nur temporär)
C21: Prozesse incl. Beispiel | E21: Aufbereitung von Medien, Versorgung der Informationssysteme (z. B. Server), Haustechnik
C23: organisatorische Anforderungen | E23: sichere Versorgung, räumlich relativ nah zu energieintensiven Prozessen
C25: idealtypische Position in der Prozesskette | E25: -
B28: Architektur | C28: Architektur (??)
E29: Beschreibung | G29: Erläuterungen
C30: …
C32: …
C34: …
C36: Gebäudestruktur
E37: Wert
C38: Tageslichtquotient (D) | E38: 0
C39: Fensterfaktor (KF) | E39: KF = 0
C40: Sichtbeziehung nach außen | E40: Sichtbeziehung nach außen ist nicht erforderlich
C41: Qualität Innenausbau (1-5) | E41: 1
C42: Geometrie
E43: Einheit | F43: Wert | G43: Erläuterungen
C44: Raumhöhe
D45: bis 5000 m3/h Volumenstrom | E45: m | F45: > 2,50 | G45: Luftraum (LR)
D46: bis 10000 m3/h Volumenstrom | E46: m | F46: > 2,50
D47: bis 15000 m3/h Volumenstrom | E47: m | F47: > 3,00
D48: bis 20000 m3/h Volumenstrom | E48: m | F48: > 4,00
C49: Fläche | E49: Anteil in % an Ages | F49: 4
C50: minimales Raumvolumen | E50: m³ | F50: - | G50: keine Vorgabe
C51: Geschosse | E51: Anzahl | F51: 1
B53: Bauphysik1 | C53: Raumkonditionierung
E54: Einheit | F54: Wert | G54: Erläuterungen
C55: Raum-Solltemperatur Heizung | E55: °C | F55: 17
C56: Raum-Soltemperatur natürliche Lüftung | E56: °C | F56: 26
C57: Minimaltemperatur Auslegung Heizung | E57: °C | F57: 15
C58: Lüftung | E58: °C | F58: 28
C59: Temperaturabsenkung reduzierter Betrieb | E59: K | F59: 4
C61: Mindestaußenluftvolumenstrom
E62: Einheit | F62: Wert | G62: Erläuterungen
C63: Mindestaußenluftvolumenstrom | E63: 1/h | F63: 0.6 | G63: sofern Zone an Außenwand liegt, kann Wert höher als 0,6 sein.
C65: Wärmeeinträge
E66: Einheit | F66: Wert | G66: Erläuterungen
C67: Maximale Belegungsdichte | E67: m² je Person | F67: -
C68: Wärmeenergieeintrag durch Personen (190W/Person) | E68: W/m² | F68: -
C69: Wärmeenergieeintrag durch Anlagen, Transporthilfsmittel etc. | E69: W/m² | F69: ca. 10
C70: Wärmeenergiezufuhr je Tag | E70: Wh/(m²*d) | F70: -
C72: Beleuchtung
E73: Einheit | F73: Wert | G73: Erläuterungen
C74: Wartungswert der Beleuchtungsstärke | E74: lx | F74: 100
C76: Bauteile2
E77: Einheit | F77: Wert | G77: Erläuterungen
C78: Dach | E78: U-Wert in W/(m²K) | F78: 0.2
C79: Außenwand | E79: U-Wert in W/(m²K) | F79: 0.35
C80: Unterer Gebäudeabschluss | E80: U-Wert in W/(m²K) | F80: 0.35
C81: Innenwand opak | E81: U-Wert in W/(m²K) | F81: 2.5
D83: 1: Nutzungsrandbedingungen in Anlehnung an DIN V 18599-10 2: Bauteilqualität in Anlehung an Anforderungen für Nichtwohngebäude nach EnEV'09

Sheet Fertigung 100 W pro m² (hidden)
D2: ID-Card | E2: Fertigung (100 W/m²)
B4: Allgemeine Nutzungsrandbedingungen1 | C4: Nutzungszeiten
E5: Einheit | F5: Wert | G5: Erläuterungen
C6: Jährliche durchschnittliche Nutzungszeit (von xx:xx Uhr bis xx:xx Uhr) | E6: Uhrzeit | F6: 07:00 Uhr bis 16:00 Uhr
C7: Anzahl jährliche Nutzungstage | E7: d/a | F7: 250
C8: Jährliche Nutzungsstunden zur Tagzeit (Intervall: 06:00 Uhr bis 22:00 Uhr) | E8: h/a | F8: 2192
C9: Jährliche Nutzungsstunden zur Nachtzeit (Intervall: 22:00 Uhr bis 06:00 Uhr) | E9: h/a | F9: 58
C10: Tägliche Betriebszeit der Raumlufttechnik (RLT) und Kühlung (von xx:xx Uhr bis xx:xx Uhr) | E10: Uhrzeit | F10: 05:00 Uhr bis 16:00 Uhr
C11: Tägliche Betriebszeit der Heizung (von xx:xx Uhr bis xx:xx Uhr) | E11: Uhrzeit | F11: 05:00 Uhr bis 16:00 Uhr
C12: Jährliche durchschnittliche Betriebstage jeweils für | E12: - | F12: - | G12: -
D13: RLT | E13: d/a | F13: 250
D14: Heizung | E14: d/a | F14: 250
D15: Kühlung | E15: d/a | F15: 250
B17: Prozesse & Logistik | C17: Ablauftechnische und organisatorische Anforderungen und Charakteristika
E18: Beschreibung
C19: Modulbeschreibung | E19: hoher Anteil der Wertschöpfung durch automatisierte Betriebsmittel, geringer Anteil durch personelle Kapazitäten
C21: Prozesse incl. Beispiel | E21: Urformen, Umformen, Trennen, Beschichten, Stoffeigenschaften ändern
C23: organisatorische Anforderungen | E23: gradliniger Materialfluss, geringe Durchlaufzeiten, hohe Kapazitätsauslastung, automatisierte Verkettung der Arbeitssysteme
C25: idealtypische Position in der Prozesskette | E25: nach Entwicklung, Konstruktion, Arbeitsvorbereitung
B28: Architektur | C28: Architektur (??)
E29: Beschreibung | G29: Erläuterungen
C30: …
C32: …
C34: …
C36: Gebäudestruktur
E37: Wert
C38: Tageslichtquotient (D) | E38: min: 2% | F38: mittel: 4% | G38: max: 10%
C39: Fensterfaktor (KF) | E39: KF > 0,1
C40: Sichtbeziehung nach außen | E40: mindestens 10% der Außenwandfläche müssen transparent sein
C41: Qualität Innenausbau (1-5) | E41: 3
C42: Geometrie
E43: Einheit | F43: Wert | G43: Erläuterungen
C44: Raumhöhe
D45: 8 bis 50 m² Raumfläche | E45: m | F45: > 2,50 | G45: Luftraum (LR)
D46: 50 m² bis 100 m² Raumfläche | E46: m | F46: > 2,75
D47: 100 - 2000 m² Raumfläche | E47: m | F47: > 3,00
D48: mehr als 2000 m² Raumfläche | E48: m | F48: > 3,25
C49: Fläche | E49: Anteil in % an Ages | F49: 24
C50: minimales Raumvolumen | E50: m³ | F50: 125 | G50: pro Mitarbeiter
C51: Geschosse | E51: Anzahl | F51: 1
B53: Bauphysik1 | C53: Raumkonditionierung
E54: Einheit | F54: Wert | G54: Erläuterungen
C55: Raum-Solltemperatur Heizung | E55: °C | F55: 17
C56: Raum-Soltemperatur natürliche Lüftung | E56: °C | F56: 26 | G56: gem. ArbSättRL
C57: Minimaltemperatur Auslegung Heizung | E57: °C | F57: 15
C58: Lüftung | E58: °C | F58: 30
C59: Temperaturabsenkung reduzierter Betrieb | E59: K | F59: 4
C61: Mindestaußenluftvolumenstrom
E62: Einheit | F62: Wert | G62: Erläuterungen
C63: Mindestaußenluftvolumenstrom | E63: 1/h | F63: 0.6 | G63: sofern Zone an Außenwand liegt, kann Wert höher als 0,6 sein.
C65: Wärmeeinträge
E66: Einheit | F66: Wert | G66: Erläuterungen
C67: Maximale Belegungsdichte | E67: m² je Person | F67: ca. 20
C68: Wärmeenergieeintrag durch Personen (190W/Person) | E68: W/m² | F68: ca. 12
C69: Wärmeenergieeintrag durch Anlagen, Transporthilfsmittel etc. | E69: W/m² | F69: 100
C70: Wärmeenergiezufuhr je Tag | E70: Wh/(m²*d) | F70: -
C72: Beleuchtung
E73: Einheit | F73: Wert | G73: Erläuterungen
C74: Wartungswert der Beleuchtungsstärke | E74: lx | F74: 500
C76: Bauteile2
E77: Einheit | F77: Wert | G77: Erläuterungen
C78: Dach | E78: U-Wert in W/(m²K) | F78: 0.2
C79: Außenwand | E79: U-Wert in W/(m²K) | F79: 0.35
C80: Unterer Gebäudeabschluss | E80: U-Wert in W/(m²K) | F80: 0.35
C81: Innenwand opak | E81: U-Wert in W/(m²K) | F81: 2.5
D83: 1: Nutzungsrandbedingungen in Anlehnung an DIN V 18599-10 2: Bauteilqualität in Anlehung an Anforderungen für Nichtwohngebäude nach EnEV'09

Sheet Fertigung 300 W pro m² (hidden)
D2: ID-Card | E2: Fertigung (300 W/m²)
B4: Allgemeine Nutzungsrandbedingungen1 | C4: Nutzungszeiten
E5: Einheit | F5: Wert | G5: Erläuterungen
C6: Jährliche durchschnittliche Nutzungszeit (von xx:xx Uhr bis xx:xx Uhr) | E6: Uhrzeit | F6: 07:00 Uhr bis 16:00 Uhr
C7: Anzahl jährliche Nutzungstage | E7: d/a | F7: 250
C8: Jährliche Nutzungsstunden zur Tagzeit (Intervall: 06:00 Uhr bis 22:00 Uhr) | E8: h/a | F8: 2192
C9: Jährliche Nutzungsstunden zur Nachtzeit (Intervall: 22:00 Uhr bis 06:00 Uhr) | E9: h/a | F9: 58
C10: Tägliche Betriebszeit der Raumlufttechnik (RLT) und Kühlung (von xx:xx Uhr bis xx:xx Uhr) | E10: Uhrzeit | F10: 05:00 Uhr bis 16:00 Uhr
C11: Tägliche Betriebszeit der Heizung (von xx:xx Uhr bis xx:xx Uhr) | E11: Uhrzeit | F11: 05:00 Uhr bis 16:00 Uhr
C12: Jährliche durchschnittliche Betriebstage jeweils für | E12: - | F12: - | G12: -
D13: RLT | E13: d/a | F13: 250
D14: Heizung | E14: d/a | F14: 250
D15: Kühlung | E15: d/a | F15: 250
B17: Prozesse & Logistik | C17: Ablauftechnische und organisatorische Anforderungen und Charakteristika
E18: Beschreibung
C19: Modulbeschreibung | E19: hoher Anteil der Wertschöpfung durch automatisierte Betriebsmittel, geringer Anteil durch personelle Kapazitäten
C21: Prozesse incl. Beispiel | E21: Urformen, Umformen, Trennen, Beschichten, Stoffeigenschaften ändern
C23: organisatorische Anforderungen | E23: gradliniger Materialfluss, geringe Durchlaufzeiten, hohe Kapazitätsauslastung, automatisierte Verkettung der Arbeitssysteme
C25: idealtypische Position in der Prozesskette | E25: nach Entwicklung, Konstruktion, Arbeitsvorbereitung
B28: Architektur | C28: Architektur (??)
E29: Beschreibung | G29: Erläuterungen
C30: …
C32: …
C34: …
C36: Gebäudestruktur
E37: Wert
C38: Tageslichtquotient (D) | E38: min: 2% | F38: mittel: 4% | G38: max: 10%
C39: Fensterfaktor (KF) | E39: KF > 0,1
C40: Sichtbeziehung nach außen | E40: mindestens 10% der Außenwandfläche müssen transparent sein
C41: Qualität Innenausbau (1-5) | E41: 3
C42: Geometrie
E43: Einheit | F43: Wert | G43: Erläuterungen
C44: Raumhöhe
D45: 8 bis 50 m² Raumfläche | E45: m | F45: > 2,50 | G45: Luftraum (LR)
D46: 50 m² bis 100 m² Raumfläche | E46: m | F46: > 2,75
D47: 100 - 2000 m² Raumfläche | E47: m | F47: > 3,00
D48: mehr als 2000 m² Raumfläche | E48: m | F48: > 3,25
C49: Fläche | E49: Anteil in % an Ages | F49: 24
C50: minimales Raumvolumen | E50: m³ | F50: 125 | G50: pro Mitarbeiter
C51: Geschosse | E51: Anzahl | F51: 1
B53: Bauphysik1 | C53: Raumkonditionierung
E54: Einheit | F54: Wert | G54: Erläuterungen
C55: Raum-Solltemperatur Heizung | E55: °C | F55: 17
C56: Raum-Soltemperatur natürliche Lüftung | E56: °C | F56: 26 | G56: gem. ArbSättRL
C57: Minimaltemperatur Auslegung Heizung | E57: °C | F57: 15
C58: Lüftung | E58: °C | F58: 30
C59: Temperaturabsenkung reduzierter Betrieb | E59: K | F59: 4
C61: Mindestaußenluftvolumenstrom
E62: Einheit | F62: Wert | G62: Erläuterungen
C63: Mindestaußenluftvolumenstrom | E63: 1/h | F63: 0.6 | G63: sofern Zone an Außenwand liegt, kann Wert höher als 0,6 sein.
C65: Wärmeeinträge
E66: Einheit | F66: Wert | G66: Erläuterungen
C67: Maximale Belegungsdichte | E67: m² je Person | F67: ca. 20
C68: Wärmeenergieeintrag durch Personen (190W/Person) | E68: W/m² | F68: ca. 12
C69: Wärmeenergieeintrag durch Anlagen, Transporthilfsmittel etc. | E69: W/m² | F69: 300
C70: Wärmeenergiezufuhr je Tag | E70: Wh/(m²*d) | F70: -
C72: Beleuchtung
E73: Einheit | F73: Wert | G73: Erläuterungen
C74: Wartungswert der Beleuchtungsstärke | E74: lx | F74: 500
C76: Bauteile2
E77: Einheit | F77: Wert | G77: Erläuterungen
C78: Dach | E78: U-Wert in W/(m²K) | F78: 0.2
C79: Außenwand | E79: U-Wert in W/(m²K) | F79: 0.35
C80: Unterer Gebäudeabschluss | E80: U-Wert in W/(m²K) | F80: 0.35
C81: Innenwand opak | E81: U-Wert in W/(m²K) | F81: 2.5
D83: 1: Nutzungsrandbedingungen in Anlehnung an DIN V 18599-10 2: Bauteilqualität in Anlehung an Anforderungen für Nichtwohngebäude nach EnEV'09

Sheet Fertigung 500 W pro m² (hidden)
D2: ID-Card | E2: Fertigung (500 W/m²)
B4: Allgemeine Nutzungsrandbedingungen1 | C4: Nutzungszeiten
E5: Einheit | F5: Wert | G5: Erläuterungen
C6: Jährliche durchschnittliche Nutzungszeit (von xx:xx Uhr bis xx:xx Uhr) | E6: Uhrzeit | F6: 07:00 Uhr bis 16:00 Uhr
C7: Anzahl jährliche Nutzungstage | E7: d/a | F7: 250
C8: Jährliche Nutzungsstunden zur Tagzeit (Intervall: 06:00 Uhr bis 22:00 Uhr) | E8: h/a | F8: 2192
C9: Jährliche Nutzungsstunden zur Nachtzeit (Intervall: 22:00 Uhr bis 06:00 Uhr) | E9: h/a | F9: 58
C10: Tägliche Betriebszeit der Raumlufttechnik (RLT) und Kühlung (von xx:xx Uhr bis xx:xx Uhr) | E10: Uhrzeit | F10: 05:00 Uhr bis 16:00 Uhr
C11: Tägliche Betriebszeit der Heizung (von xx:xx Uhr bis xx:xx Uhr) | E11: Uhrzeit | F11: 05:00 Uhr bis 16:00 Uhr
C12: Jährliche durchschnittliche Betriebstage jeweils für | E12: - | F12: - | G12: -
D13: RLT | E13: d/a | F13: 250
D14: Heizung | E14: d/a | F14: 250
D15: Kühlung | E15: d/a | F15: 250
B17: Prozesse & Logistik | C17: Ablauftechnische und organisatorische Anforderungen und Charakteristika
E18: Beschreibung
C19: Modulbeschreibung | E19: hoher Anteil der Wertschöpfung durch automatisierte Betriebsmittel, geringer Anteil durch personelle Kapazitäten
C21: Prozesse incl. Beispiel | E21: Urformen, Umformen, Trennen, Beschichten, Stoffeigenschaften ändern
C23: organisatorische Anforderungen | E23: gradliniger Materialfluss, geringe Durchlaufzeiten, hohe Kapazitätsauslastung, automatisierte Verkettung der Arbeitssysteme
C25: idealtypische Position in der Prozesskette | E25: nach Entwicklung, Konstruktion, Arbeitsvorbereitung
B28: Architektur | C28: Architektur (??)
E29: Beschreibung | G29: Erläuterungen
C30: …
C32: …
C34: …
C36: Gebäudestruktur
E37: Wert
C38: Tageslichtquotient (D) | E38: min: 2% | F38: mittel: 4% | G38: max: 10%
C39: Fensterfaktor (KF) | E39: KF > 0,1
C40: Sichtbeziehung nach außen | E40: mindestens 10% der Außenwandfläche müssen transparent sein
C41: Qualität Innenausbau (1-5) | E41: 3
C42: Geometrie
E43: Einheit | F43: Wert | G43: Erläuterungen
C44: Raumhöhe
D45: 8 bis 50 m² Raumfläche | E45: m | F45: > 2,50 | G45: Luftraum (LR)
D46: 50 m² bis 100 m² Raumfläche | E46: m | F46: > 2,75
D47: 100 - 2000 m² Raumfläche | E47: m | F47: > 3,00
D48: mehr als 2000 m² Raumfläche | E48: m | F48: > 3,25
C49: Fläche | E49: Anteil in % an Ages | F49: 24
C50: minimales Raumvolumen | E50: m³ | F50: 125 | G50: pro Mitarbeiter
C51: Geschosse | E51: Anzahl | F51: 1
B53: Bauphysik1 | C53: Raumkonditionierung
E54: Einheit | F54: Wert | G54: Erläuterungen
C55: Raum-Solltemperatur Heizung | E55: °C | F55: 17
C56: Raum-Soltemperatur natürliche Lüftung | E56: °C | F56: 26 | G56: gem. ArbSättRL
C57: Minimaltemperatur Auslegung Heizung | E57: °C | F57: 15
C58: Lüftung | E58: °C | F58: 30
C59: Temperaturabsenkung reduzierter Betrieb | E59: K | F59: 4
C61: Mindestaußenluftvolumenstrom
E62: Einheit | F62: Wert | G62: Erläuterungen
C63: Mindestaußenluftvolumenstrom | E63: 1/h | F63: 0.6 | G63: sofern Zone an Außenwand liegt, kann Wert höher als 0,6 sein.
C65: Wärmeeinträge
E66: Einheit | F66: Wert | G66: Erläuterungen
C67: Maximale Belegungsdichte | E67: m² je Person | F67: ca. 20
C68: Wärmeenergieeintrag durch Personen (190W/Person) | E68: W/m² | F68: ca. 12
C69: Wärmeenergieeintrag durch Anlagen, Transporthilfsmittel etc. | E69: W/m² | F69: 500
C70: Wärmeenergiezufuhr je Tag | E70: Wh/(m²*d) | F70: -
C72: Beleuchtung
E73: Einheit | F73: Wert | G73: Erläuterungen
C74: Wartungswert der Beleuchtungsstärke | E74: lx | F74: 500
C76: Bauteile2
E77: Einheit | F77: Wert | G77: Erläuterungen
C78: Dach | E78: U-Wert in W/(m²K) | F78: 0.2
C79: Außenwand | E79: U-Wert in W/(m²K) | F79: 0.35
C80: Unterer Gebäudeabschluss | E80: U-Wert in W/(m²K) | F80: 0.35
C81: Innenwand opak | E81: U-Wert in W/(m²K) | F81: 2.5
D83: 1: Nutzungsrandbedingungen in Anlehnung an DIN V 18599-10 2: Bauteilqualität in Anlehung an Anforderungen für Nichtwohngebäude nach EnEV'09

Sheet Montage (hidden)
D2: ID-Card | E2: Montage
B4: Allgemeine Nutzungsrandbedingungen1 | C4: Nutzungszeiten
E5: Einheit | F5: Wert | G5: Erläuterungen
C6: Jährliche durchschnittliche Nutzungszeit (von xx:xx Uhr bis xx:xx Uhr) | E6: Uhrzeit | F6: 07:00 Uhr bis 16:00 Uhr
C7: Anzahl jährliche Nutzungstage | E7: d/a | F7: 250
C8: Jährliche Nutzungsstunden zur Tagzeit (Intervall: 06:00 Uhr bis 22:00 Uhr) | E8: h/a | F8: 2192
C9: Jährliche Nutzungsstunden zur Nachtzeit (Intervall: 22:00 Uhr bis 06:00 Uhr) | E9: h/a | F9: 58
C10: Tägliche Betriebszeit der Raumlufttechnik (RLT) und Kühlung (von xx:xx Uhr bis xx:xx Uhr) | E10: Uhrzeit | F10: 05:00 Uhr bis 16:00 Uhr
C11: Tägliche Betriebszeit der Heizung (von xx:xx Uhr bis xx:xx Uhr) | E11: Uhrzeit | F11: 05:00 Uhr bis 16:00 Uhr
C12: Jährliche durchschnittliche Betriebstage jeweils für | E12: - | F12: - | G12: -
D13: RLT | E13: d/a | F13: 250
D14: Heizung | E14: d/a | F14: 250
D15: Kühlung | E15: d/a | F15: 250
B17: Prozesse & Logistik | C17: Ablauftechnische und organisatorische Anforderungen und Charakteristika
E18: Beschreibung
C19: Modulbeschreibung | E19: mittlerer bis hoher Anteil der Wertschöpfung durch personelle Kapazitäten, niedriger bis mittlerer Anteil durch automatisierte Betriebsmittel
C21: Prozesse incl. Beispiel | E21: Fügen. Transportieren, Handhaben, Kontrollieren (Qualitätssicherung etc.)
C23: organisatorische Anforderungen | E23: Flussgerechte Materialbewegung, geringe Montagedurchlaufzeit, hohe Transparenz der Montageaufgaben, hohe Auslastung der Montagesysteme
C25: idealtypische Position in der Prozesskette | E25: nach Fertigung
B28: Architektur | C28: Architektur (??)
E29: Beschreibung | G29: Erläuterungen
C30: …
C32: …
C34: …
C36: Gebäudestruktur
E37: Wert
C38: Tageslichtquotient (D) | E38: min: 2% | F38: mittel: 4% | G38: max: 10%
C39: Fensterfaktor (KF) | E39: KF > 0,1
C40: Sichtbeziehung nach außen | E40: mindestens 10% der Außenwandfläche müssen transparent sein
C41: Qualität Innenausbau (1-5) | E41: 3
C42: Geometrie
E43: Einheit | F43: Wert | G43: Erläuterungen
C44: Raumhöhe
D45: 8 bis 50 m² Raumfläche | E45: m | F45: > 2,50 | G45: Luftraum (LR)
D46: 50 m² bis 100 m² Raumfläche | E46: m | F46: > 2,75
D47: 100 - 2000 m² Raumfläche | E47: m | F47: > 3,00
D48: mehr als 2000 m² Raumfläche | E48: m | F48: > 3,25
C49: Fläche | E49: Anteil in % an Ages | F49: 24
C50: minimales Raumvolumen | E50: m³ | F50: 125 | G50: pro Mitarbeiter
C51: Geschosse | E51: Anzahl | F51: 1
B53: Bauphysik1 | C53: Raumkonditionierung
E54: Einheit | F54: Wert | G54: Erläuterungen
C55: Raum-Solltemperatur Heizung | E55: °C | F55: 17
C56: Raum-Soltemperatur natürliche Lüftung | E56: °C | F56: 26 | G56: gem. ArbSättRL
C57: Minimaltemperatur Auslegung Heizung | E57: °C | F57: 15
C58: Lüftung | E58: °C | F58: 30
C59: Temperaturabsenkung reduzierter Betrieb | E59: K | F59: 4
C61: Mindestaußenluftvolumenstrom
E62: Einheit | F62: Wert | G62: Erläuterungen
C63: Mindestaußenluftvolumenstrom | E63: 1/h | F63: 0.6 | G63: sofern Zone an Außenwand liegt, kann Wert höher als 0,6 sein.
C65: Wärmeeinträge
E66: Einheit | F66: Wert | G66: Erläuterungen
C67: Maximale Belegungsdichte | E67: m² je Person | F67: ca. 20
C68: Wärmeenergieeintrag durch Personen (190W/Person) | E68: W/m² | F68: ca. 12
C69: Wärmeenergieeintrag durch Anlagen, Transporthilfsmittel etc. | E69: W/m² | F69: 35
C70: Wärmeenergiezufuhr je Tag | E70: Wh/(m²*d) | F70: -
C72: Beleuchtung
E73: Einheit | F73: Wert | G73: Erläuterungen
C74: Wartungswert der Beleuchtungsstärke | E74: lx | F74: 500
C76: Bauteile2
E77: Einheit | F77: Wert | G77: Erläuterungen
C78: Dach | E78: U-Wert in W/(m²K) | F78: 0.2
C79: Außenwand | E79: U-Wert in W/(m²K) | F79: 0.35
C80: Unterer Gebäudeabschluss | E80: U-Wert in W/(m²K) | F80: 0.35
C81: Innenwand opak | E81: U-Wert in W/(m²K) | F81: 2.5
D83: 1: Nutzungsrandbedingungen in Anlehnung an DIN V 18599-10 2: Bauteilqualität in Anlehung an Anforderungen für Nichtwohngebäude nach EnEV'09

Sheet Lager in Produktion (hidden)
D2: ID-Card | E2: Lager in der Produktion
B4: Allgemeine Nutzungsrandbedingungen1 | C4: Nutzungszeiten
E5: Einheit | F5: Wert | G5: Erläuterungen
C6: Jährliche durchschnittliche Nutzungszeit (von xx:xx Uhr bis xx:xx Uhr) | E6: Uhrzeit | F6: 00:00 Uhr bis 24:00 Uhr
C7: Anzahl jährliche Nutzungstage | E7: d/a | F7: 365
C8: Jährliche Nutzungsstunden zur Tagzeit (Intervall: 06:00 Uhr bis 22:00 Uhr) | E8: h/a | F8: 4407
C9: Jährliche Nutzungsstunden zur Nachtzeit (Intervall: 22:00 Uhr bis 06:00 Uhr) | E9: h/a | F9: 4353
C10: Tägliche Betriebszeit der Raumlufttechnik (RLT) und Kühlung (von xx:xx Uhr bis xx:xx Uhr) | E10: Uhrzeit | F10: 00:00 Uhr bis 24:00 Uhr
C11: Tägliche Betriebszeit der Heizung (von xx:xx Uhr bis xx:xx Uhr) | E11: Uhrzeit | F11: 00:00 Uhr bis 24:00 Uhr
C12: Jährliche durchschnittliche Betriebstage jeweils für | E12: - | F12: - | G12: -
D13: RLT | E13: d/a | F13: 365
D14: Heizung | E14: d/a | F14: 365
D15: Kühlung | E15: d/a | F15: 365
B17: Prozesse & Logistik | C17: Ablauftechnische und organisatorische Anforderungen und Charakteristika
E18: Beschreibung
C19: Modulbeschreibung | E19: Modul zum lagern und puffern von Artikeln, Entkopplung von produktiven Bereichen; wenig Personal und Betriebsmittel im Modul
C21: Prozesse incl. Beispiel | E21: Lagerung, Pufferung
C23: organisatorische Anforderungen | E23: sichere Versorgung aller produktiven Bereiche
C25: idealtypische Position in der Prozesskette | E25: beliebig
B28: Architektur | C28: Architektur (??)
E29: Beschreibung | G29: Erläuterungen
C30: …
C32: …
C34: …
C36: Gebäudestruktur
E37: Wert
C38: Tageslichtquotient (D) | E38: min: 2% | F38: mittel: 4% | G38: max: 10%
C39: Fensterfaktor (KF) | E39: KF > 0,1
C40: Sichtbeziehung nach außen | E40: mindestens 10% der Außenwandfläche müssen transparent sein
C41: Qualität Innenausbau (1-5) | E41: 2
C42: Geometrie
E43: Einheit | F43: Wert | G43: Erläuterungen
C44: Raumhöhe
D45: Handregallager einstöckig (zweistöckig) | E45: m | F45: > 3 | G45: Luftraum (LR)
D46: Palettenlager mit Staplerbetrieb | E46: m | F46: > 6
D47: Hochregallager mit Hochregalstapler | E47: m | F47: > 9
D48: Hochregallager mit Stapelkran | E48: m | F48: >25
C49: Fläche | E49: Anteil in % an Ages | F49: 32
C50: minimales Raumvolumen | E50: m³ | F50: - | G50: keine Vorgabe
C51: Geschosse | E51: Anzahl | F51: 1
B53: Bauphysik1 | C53: Raumkonditionierung
E54: Einheit | F54: Wert | G54: Erläuterungen
C55: Raum-Solltemperatur Heizung | E55: °C | F55: 12
C56: Raum-Soltemperatur natürliche Lüftung | E56: °C | F56: 26 | G56: gem. ArbSättRL
C57: Minimaltemperatur Auslegung Heizung | E57: °C | F57: 12
C58: Lüftung | E58: °C | F58: 28
C59: Temperaturabsenkung reduzierter Betrieb | E59: K | F59: 0
C61: Mindestaußenluftvolumenstrom
E62: Einheit | F62: Wert | G62: Erläuterungen
C63: Mindestaußenluftvolumenstrom | E63: 1/h | F63: 0.6 | G63: sofern Zone an Außenwand liegt, kann Wert höher als 0,6 sein.
C65: Wärmeeinträge
E66: Einheit | F66: Wert | G66: Erläuterungen
C67: Maximale Belegungsdichte | E67: m² je Person | F67: -
C68: Wärmeenergieeintrag durch Personen (190W/Person) | E68: W/m² | F68: -
C69: Wärmeenergieeintrag durch Anlagen, Transporthilfsmittel etc. | E69: W/m² | F69: -
C70: Wärmeenergiezufuhr je Tag | E70: Wh/(m²*d) | F70: -
C72: Beleuchtung
E73: Einheit | F73: Wert | G73: Erläuterungen
C74: Wartungswert der Beleuchtungsstärke | E74: lx | F74: 100
C76: Bauteile2
E77: Einheit | F77: Wert | G77: Erläuterungen
C78: Dach | E78: U-Wert in W/(m²K) | F78: 0.2
C79: Außenwand | E79: U-Wert in W/(m²K) | F79: 0.35
C80: Unterer Gebäudeabschluss | E80: U-Wert in W/(m²K) | F80: 0.35
C81: Innenwand opak | E81: U-Wert in W/(m²K) | F81: 2.5
D83: 1: Nutzungsrandbedingungen in Anlehnung an DIN V 18599-10 2: Bauteilqualität in Anlehung an Anforderungen für Nichtwohngebäude nach EnEV'09

Sheet Wareneingangslager (hidden)
D2: ID-Card | E2: Wareneingangslager
B4: Allgemeine Nutzungsrandbedingungen1 | C4: Nutzungszeiten
E5: Einheit | F5: Wert | G5: Erläuterungen
C6: Jährliche durchschnittliche Nutzungszeit (von xx:xx Uhr bis xx:xx Uhr) | E6: Uhrzeit | F6: 00:00 Uhr bis 24:00 Uhr
C7: Anzahl jährliche Nutzungstage | E7: d/a | F7: 365
C8: Jährliche Nutzungsstunden zur Tagzeit (Intervall: 06:00 Uhr bis 22:00 Uhr) | E8: h/a | F8: 4407
C9: Jährliche Nutzungsstunden zur Nachtzeit (Intervall: 22:00 Uhr bis 06:00 Uhr) | E9: h/a | F9: 4353
C10: Tägliche Betriebszeit der Raumlufttechnik (RLT) und Kühlung (von xx:xx Uhr bis xx:xx Uhr) | E10: Uhrzeit | F10: 00:00 Uhr bis 24:00 Uhr
C11: Tägliche Betriebszeit der Heizung (von xx:xx Uhr bis xx:xx Uhr) | E11: Uhrzeit | F11: 00:00 Uhr bis 24:00 Uhr
C12: Jährliche durchschnittliche Betriebstage jeweils für | E12: - | F12: - | G12: -
D13: RLT | E13: d/a | F13: 365
D14: Heizung | E14: d/a | F14: 365
D15: Kühlung | E15: d/a | F15: 365
B17: Prozesse & Logistik | C17: Ablauftechnische und organisatorische Anforderungen und Charakteristika
E18: Beschreibung
C19: Modulbeschreibung | E19: Modul zum lagern und puffern von Artikeln, Entkopplung von Lieferanten; wenig Personal und Betriebsmittel im Modul
C21: Prozesse incl. Beispiel | E21: Lagerung, Pufferung, Warenannahme
C23: organisatorische Anforderungen | E23: sichere Versorgung der nachgelagerten Bereiche
C25: idealtypische Position in der Prozesskette | E25: am Anfang der Prozesskette für physische Prozesse
B28: Architektur | C28: Architektur (??)
E29: Beschreibung | G29: Erläuterungen
C30: …
C32: …
C34: …
C36: Gebäudestruktur
E37: Wert
C38: Tageslichtquotient (D) | E38: min: 2% | F38: mittel: 4% | G38: max: 10%
C39: Fensterfaktor (KF) | E39: KF > 0,1
C40: Sichtbeziehung nach außen | E40: mindestens 10% der Außenwandfläche müssen transparent sein
C41: Qualität Innenausbau (1-5) | E41: 2
C42: Geometrie
E43: Einheit | F43: Wert | G43: Erläuterungen
C44: Raumhöhe
D45: Handregallager einstöckig (zweistöckig) | E45: m | F45: > 3 | G45: Luftraum (LR)
D46: Palettenlager mit Staplerbetrieb | E46: m | F46: > 6
D47: Hochregallager mit Hochregalstapler | E47: m | F47: > 9
D48: Hochregallager mit Stapelkran | E48: m | F48: >25
C49: Fläche | E49: Anteil in % an Ages | F49: 32
C50: minimales Raumvolumen | E50: m³ | F50: - | G50: keine Vorgabe
C51: Geschosse | E51: Anzahl | F51: 1
B53: Bauphysik1 | C53: Raumkonditionierung
E54: Einheit | F54: Wert | G54: Erläuterungen
C55: Raum-Solltemperatur Heizung | E55: °C | F55: 12
C56: Raum-Soltemperatur natürliche Lüftung | E56: °C | F56: 26 | G56: gem. ArbSättRL
C57: Minimaltemperatur Auslegung Heizung | E57: °C | F57: 12
C58: Lüftung | E58: °C | F58: 28
C59: Temperaturabsenkung reduzierter Betrieb | E59: K | F59: 0
C61: Mindestaußenluftvolumenstrom
E62: Einheit | F62: Wert | G62: Erläuterungen
C63: Mindestaußenluftvolumenstrom | E63: 1/h | F63: 0.6 | G63: sofern Zone an Außenwand liegt, kann Wert höher als 0,6 sein.
C65: Wärmeeinträge
E66: Einheit | F66: Wert | G66: Erläuterungen
C67: Maximale Belegungsdichte | E67: m² je Person | F67: -
C68: Wärmeenergieeintrag durch Personen (190W/Person) | E68: W/m² | F68: -
C69: Wärmeenergieeintrag durch Anlagen, Transporthilfsmittel etc. | E69: W/m² | F69: -
C70: Wärmeenergiezufuhr je Tag | E70: Wh/(m²*d) | F70: -
C72: Beleuchtung
E73: Einheit | F73: Wert | G73: Erläuterungen
C74: Wartungswert der Beleuchtungsstärke | E74: lx | F74: 100
C76: Bauteile2
E77: Einheit | F77: Wert | G77: Erläuterungen
C78: Dach | E78: U-Wert in W/(m²K) | F78: 0.2
C79: Außenwand | E79: U-Wert in W/(m²K) | F79: 0.35
C80: Unterer Gebäudeabschluss | E80: U-Wert in W/(m²K) | F80: 0.35
C81: Innenwand opak | E81: U-Wert in W/(m²K) | F81: 2.5
D83: 1: Nutzungsrandbedingungen in Anlehnung an DIN V 18599-10 2: Bauteilqualität in Anlehung an Anforderungen für Nichtwohngebäude nach EnEV'09

Sheet Warenausgangslager (hidden)
D2: ID-Card | E2: Warenausgangslager
B4: Allgemeine Nutzungsrandbedingungen1 | C4: Nutzungszeiten
E5: Einheit | F5: Wert | G5: Erläuterungen
C6: Jährliche durchschnittliche Nutzungszeit (von xx:xx Uhr bis xx:xx Uhr) | E6: Uhrzeit | F6: 00:00 Uhr bis 24:00 Uhr
C7: Anzahl jährliche Nutzungstage | E7: d/a | F7: 365
C8: Jährliche Nutzungsstunden zur Tagzeit (Intervall: 06:00 Uhr bis 22:00 Uhr) | E8: h/a | F8: 4407
C9: Jährliche Nutzungsstunden zur Nachtzeit (Intervall: 22:00 Uhr bis 06:00 Uhr) | E9: h/a | F9: 4353
C10: Tägliche Betriebszeit der Raumlufttechnik (RLT) und Kühlung (von xx:xx Uhr bis xx:xx Uhr) | E10: Uhrzeit | F10: 00:00 Uhr bis 24:00 Uhr
C11: Tägliche Betriebszeit der Heizung (von xx:xx Uhr bis xx:xx Uhr) | E11: Uhrzeit | F11: 00:00 Uhr bis 24:00 Uhr
C12: Jährliche durchschnittliche Betriebstage jeweils für | E12: - | F12: - | G12: -
D13: RLT | E13: d/a | F13: 365
D14: Heizung | E14: d/a | F14: 365
D15: Kühlung | E15: d/a | F15: 365
B17: Prozesse & Logistik | C17: Ablauftechnische und organisatorische Anforderungen und Charakteristika
E18: Beschreibung
C19: Modulbeschreibung | E19: Modul zum lagern und puffern von Artikeln, Entkopplung von Kunden; wenig Personal und Betriebsmittel im Modul
C21: Prozesse incl. Beispiel | E21: Lagerung, Pufferung, Komissionierung, Warenausgang
C23: organisatorische Anforderungen | E23: sichere Versorgung der Kunden
C25: idealtypische Position in der Prozesskette | E25: am Ende der Prozesskette für physische Prozesse
B28: Architektur | C28: Architektur (??)
E29: Beschreibung | G29: Erläuterungen
C30: …
C32: …
C34: …
C36: Gebäudestruktur
E37: Wert
C38: Tageslichtquotient (D) | E38: min: 2% | F38: mittel: 4% | G38: max: 10%
C39: Fensterfaktor (KF) | E39: KF > 0,1
C40: Sichtbeziehung nach außen | E40: mindestens 10% der Außenwandfläche müssen transparent sein
C41: Qualität Innenausbau (1-5) | E41: 2
C42: Geometrie
E43: Einheit | F43: Wert | G43: Erläuterungen
C44: Raumhöhe
D45: Handregallager einstöckig (zweistöckig) | E45: m | F45: > 3 | G45: Luftraum (LR)
D46: Palettenlager mit Staplerbetrieb | E46: m | F46: > 6
D47: Hochregallager mit Hochregalstapler | E47: m | F47: > 9
D48: Hochregallager mit Stapelkran | E48: m | F48: >25
C49: Fläche | E49: Anteil in % an Ages | F49: 32
C50: minimales Raumvolumen | E50: m³ | F50: - | G50: keine Vorgabe
C51: Geschosse | E51: Anzahl | F51: 1
B53: Bauphysik1 | C53: Raumkonditionierung
E54: Einheit | F54: Wert | G54: Erläuterungen
C55: Raum-Solltemperatur Heizung | E55: °C | F55: 12
C56: Raum-Soltemperatur natürliche Lüftung | E56: °C | F56: 26 | G56: gem. ArbSättRL
C57: Minimaltemperatur Auslegung Heizung | E57: °C | F57: 12
C58: Lüftung | E58: °C | F58: 28
C59: Temperaturabsenkung reduzierter Betrieb | E59: K | F59: 0
C61: Mindestaußenluftvolumenstrom
E62: Einheit | F62: Wert | G62: Erläuterungen
C63: Mindestaußenluftvolumenstrom | E63: 1/h | F63: 0.6 | G63: sofern Zone an Außenwand liegt, kann Wert höher als 0,6 sein.
C65: Wärmeeinträge
E66: Einheit | F66: Wert | G66: Erläuterungen
C67: Maximale Belegungsdichte | E67: m² je Person | F67: -
C68: Wärmeenergieeintrag durch Personen (190W/Person) | E68: W/m² | F68: -
C69: Wärmeenergieeintrag durch Anlagen, Transporthilfsmittel etc. | E69: W/m² | F69: -
C70: Wärmeenergiezufuhr je Tag | E70: Wh/(m²*d) | F70: -
C72: Beleuchtung
E73: Einheit | F73: Wert | G73: Erläuterungen
C74: Wartungswert der Beleuchtungsstärke | E74: lx | F74: 100
C76: Bauteile2
E77: Einheit | F77: Wert | G77: Erläuterungen
C78: Dach | E78: U-Wert in W/(m²K) | F78: 0.2
C79: Außenwand | E79: U-Wert in W/(m²K) | F79: 0.35
C80: Unterer Gebäudeabschluss | E80: U-Wert in W/(m²K) | F80: 0.35
C81: Innenwand opak | E81: U-Wert in W/(m²K) | F81: 2.5
D83: 1: Nutzungsrandbedingungen in Anlehnung an DIN V 18599-10 2: Bauteilqualität in Anlehung an Anforderungen für Nichtwohngebäude nach EnEV'09

Sheet Büro- & Sozialräume (hidden)
D2: ID-Card | E2: Büro- & Sozialräume
B4: Allgemeine Nutzungsrandbedingungen1 | C4: Nutzungszeiten
E5: Einheit | F5: Wert | G5: Erläuterungen
C6: Jährliche durchschnittliche Nutzungszeit (von xx:xx Uhr bis xx:xx Uhr) | E6: Uhrzeit | F6: 07:00 Uhr bis 18:00 Uhr
C7: Anzahl jährliche Nutzungstage | E7: d/a | F7: 250
C8: Jährliche Nutzungsstunden zur Tagzeit (Intervall: 06:00 Uhr bis 22:00 Uhr) | E8: h/a | F8: 2543
C9: Jährliche Nutzungsstunden zur Nachtzeit (Intervall: 22:00 Uhr bis 06:00 Uhr) | E9: h/a | F9: 207
C10: Tägliche Betriebszeit der Raumlufttechnik (RLT) und Kühlung (von xx:xx Uhr bis xx:xx Uhr) | E10: Uhrzeit | F10: 05:00 Uhr bis 18:00 Uhr
C11: Tägliche Betriebszeit der Heizung (von xx:xx Uhr bis xx:xx Uhr) | E11: Uhrzeit | F11: 05:00 Uhr bis 18:00 Uhr
C12: Jährliche durchschnittliche Betriebstage jeweils für | E12: - | F12: - | G12: -
D13: RLT | E13: d/a | F13: 250
D14: Heizung | E14: d/a | F14: 250
D15: Kühlung | E15: d/a | F15: 250
B17: Prozesse & Logistik | C17: Ablauftechnische und organisatorische Anforderungen und Charakteristika
E18: Beschreibung
C19: Modulbeschreibung | E19: hoher Anteil an Personen und EDV-Hilfsmitteln; geringe Frequentierung im Falle von Umkleiden
C21: Prozesse incl. Beispiel | E21: Informations- und Wissensgenerierung, -verarbeitung und -weitergabe, verwaltende Aufgaben, Einkleiden von Personal
C23: organisatorische Anforderungen | E23: keine besonderen Anforderungen
C25: idealtypische Position in der Prozesskette | E25: vor der Fertigung und innerhalb der gesamten Prozesskette
B28: Architektur | C28: Architektur (??)
E29: Beschreibung | G29: Erläuterungen
C30: …
C32: …
C34: …
C36: Gebäudestruktur
E37: Wert
C38: Tageslichtquotient (D) | E38: min: 2% | F38: mittel: 4% | G38: max: 10%
C39: Fensterfaktor (KF) | E39: KF > 0,1
C40: Sichtbeziehung nach außen | E40: mindestens 10% der Außenwandfläche müssen transparent sein
C41: Qualität Innenausbau (1-5) | E41: 4
C42: Geometrie
E43: Einheit | F43: Wert | G43: Erläuterungen
C44: Raumhöhe
D45: 13 bis 50 m² Raumfläche | E45: m | F45: > 2,50 | G45: Luftraum (LR)
D46: 50 m² bis 100 m² Raumfläche | E46: m | F46: > 2,75
D47: 100 - 2000 m² Raumfläche | E47: m | F47: > 3,00
D48: mehr als 2000 m² Raumfläche | E48: m | F48: > 3,25
C49: Fläche | E49: Anteil in % an Ages | F49: 16
C50: minimales Raumvolumen | E50: m³ | F50: 32.5 | G50: pro Mitarbeiter
C51: Geschosse | E51: Anzahl | F51: 1
B53: Bauphysik1 | C53: Raumkonditionierung
E54: Einheit | F54: Wert | G54: Erläuterungen
C55: Raum-Solltemperatur Heizung | E55: °C | F55: 21
C56: Raum-Soltemperatur natürliche Lüftung | E56: °C | F56: 24
C57: Minimaltemperatur Auslegung Heizung | E57: °C | F57: 20
C58: Lüftung | E58: °C | F58: 26
C59: Temperaturabsenkung reduzierter Betrieb | E59: K | F59: 4
C61: Mindestaußenluftvolumenstrom
E62: Einheit | F62: Wert | G62: Erläuterungen
C63: Mindestaußenluftvolumenstrom | E63: 1/h | F63: 0.6 | G63: sofern Zone an Außenwand liegt, kann Wert höher als 0,6 sein.
C65: Wärmeeinträge
E66: Einheit | F66: Wert | G66: Erläuterungen
C67: Maximale Belegungsdichte | E67: m² je Person | F67: ca. 14
C68: Wärmeenergieeintrag durch Personen (190W/Person) | E68: W/m² | F68: ca. 10
C69: Wärmeenergieeintrag durch Anlagen, Transporthilfsmittel etc. | E69: W/m² | F69: ca. 10
C70: Wärmeenergiezufuhr je Tag | E70: Wh/(m²*d) | F70: -
C72: Beleuchtung
E73: Einheit | F73: Wert | G73: Erläuterungen
C74: Wartungswert der Beleuchtungsstärke | E74: lx | F74: 500
C76: Bauteile2
E77: Einheit | F77: Wert | G77: Erläuterungen
C78: Dach | E78: U-Wert in W/(m²K) | F78: 0.2
C79: Außenwand | E79: U-Wert in W/(m²K) | F79: 0.35
C80: Unterer Gebäudeabschluss | E80: U-Wert in W/(m²K) | F80: 0.35
C81: Innenwand opak | E81: U-Wert in W/(m²K) | F81: 2.5
D83: 1: Nutzungsrandbedingungen in Anlehnung an DIN V 18599-10 2: Bauteilqualität in Anlehung an Anforderungen für Nichtwohngebäude nach EnEV'09

Sheet Auswertung Logistik (hidden)
B1: Fertigung | C1: Montage | D1: Wareneingang | E1: Warenausgang | F1: Produktions-lager | G1: Büro- und Sozialräume | H1: Technik | J1: MATERIALFLUSS | K1: Fertigung | L1: Montage | M1: Wareneingang | N1: Warenausgang | O1: Produktions-lager | P1: Büro- und Sozialräume | Q1: Technik | S1: KOMMUNIKATIONSFLUSS | T1: Fertigung | U1: Montage | V1: Wareneingang | W1: Warenausgang | X1: Produktions-lager | Y1: Büro- und Sozialräume | Z1: Technik
A2: Fertigung | J2: Fertigung | L2: 0 | M2: 0 | N2: 0 | O2: 0 | P2: 0 | Q2: 0 | S2: Fertigung | U2: 0 | V2: 0 | W2: 0 | X2: 0 | Y2: 0 | Z2: 0
A3: Montage | B3: 1 | J3: Montage | K3: 0.1901408451 | M3: 0 | N3: 0 | O3: 0 | P3: 0 | Q3: 0 | S3: Montage | T3: 0.0796460177 | V3: 0 | W3: 0 | X3: 0 | Y3: 0 | Z3: 0
A4: Wareneingang | B4: 1 | C4: 1 | J4: Wareneingang | K4: 0.2112676056 | L4: 0.1408450704 | N4: 0 | O4: 0 | P4: 0 | Q4: 0 | S4: Wareneingang | T4: 0.06194690265 | U4: 0.06194690265 | W4: 0 | X4: 0 | Y4: 0 | Z4: 0
A5: Warenausgang | C5: 1 | J5: Warenausgang | K5: 0 | L5: 0.2464788732 | M5: 0 | O5: 0 | P5: 0 | Q5: 0 | S5: Warenausgang | T5: 0 | U5: 0.0796460177 | V5: 0 | X5: 0 | Y5: 0 | Z5: 0
A6: Produktionslager | B6: 1 | C6: 1 | D6: 1 | J6: Produktionslager | K6: 0.02112676056 | L6: 0.08450704225 | M6: 0 | N6: 0 | P6: 0 | Q6: 0 | S6: Produktionslager | T6: 0.0796460177 | U6: 0.07079646018 | V6: 0.01769911504 | W6: 0 | Y6: 0 | Z6: 0
A7: Büro- und Sozialräume | B7: 1 | D7: 1 | J7: Büro- und Sozialräume | K7: 0 | L7: 0 | M7: 0 | N7: 0 | O7: 0 | Q7: 0 | S7: Büro- und Sozialräume | T7: 0.0796460177 | U7: 0 | V7: 0.0796460177 | W7: 0 | X7: 0 | Z7: 0
A8: Technik | C8: 1 | E8: 1 | J8: Technik | K8: 0 | L8: 0 | M8: 0 | N8: 0 | O8: 0 | P8: 0 | S8: Technik | T8: 0 | U8: 0.01769911504 | V8: 0 | W8: 0.01769911504 | X8: 0 | Y8: 0

Sheet Auswertung Bauphysik (hidden)
A1: Punktetabelle | B1: Fertigung 100 W/m² | C1: Fertigung 300 W/m² | D1: Fertigung 500 W/m² | E1: Montage | F1: Lager | G1: Büro- und Sozialräume | H1: Technik | I1: Außenbereiche | K1: Tabelle mit Anzahl wirksamer Flächen | L1: Fertigung 100 W/m² | M1: Fertigung 300 W/m² | N1: Fertigung 500 W/m² | O1: Montage | P1: Lager | Q1: Büro- und Sozialräume | R1: Technik | S1: Außenbereiche | T1: Summe | V1: Tabelle mit Anzahl wirksamer Flächen notmiert auf Gesamtanzahl | W1: Fertigung 100 W/m² | X1: Fertigung 300 W/m² | Y1: Fertigung 500 W/m² | Z1: Montage | AA1: Lager | AB1: Büro- und Sozialräume | AC1: Technik | AD1: Außenbereiche | AE1: Summe | AG1: Tabelle mit normierter Anzahl wirksamer Flächen multipliziert mit Punkten | AH1: Fertigung 100 W/m² | AI1: Fertigung 300 W/m² | AJ1: Fertigung 500 W/m² | AK1: Montage | AL1: Lager | AM1: Büro- und Sozialräume | AN1: Technik | AO1: Außenbereiche | AP1: Summe
A2: Fertigung 100 W/m² | B2: - | C2: - | D2: - | E2: - | F2: - | G2: - | H2: - | I2: - | K2: Fertigung 100 W/m² | T2: =SUM(L2:S2) -> 0 | V2: Fertigung 100 W/m² | W2: - | X2: - | Y2: - | Z2: - | AA2: - | AB2: - | AC2: - | AD2: - | AE2: =SUM(W2:AD2) -> 0 | AG2: Fertigung 100 W/m² | AH2: =IF(B2<>"-",B2*W2,"-") -> - | AI2: =IF(C2<>"-",C2*X2,"-") -> - | AJ2: - | AK2: - | AL2: - | AM2: - | AN2: - | AO2: - | AP2: =SUM(AH2:AO2) -> 0
A3: Fertigung 300 W/m² | B3: - | C3: - | D3: - | E3: - | F3: - | G3: - | H3: - | I3: - | K3: Fertigung 300 W/m² | T3: =SUM(L3:S3) -> 0 | V3: Fertigung 300 W/m² | W3: - | X3: - | Y3: - | Z3: - | AA3: - | AB3: - | AC3: - | AD3: - | AE3: =SUM(W3:AD3) -> 0 | AG3: Fertigung 300 W/m² | AH3: =IF(B3<>"-",B3*W3,"-") -> - | AI3: - | AJ3: - | AK3: - | AL3: - | AM3: - | AN3: - | AO3: - | AP3: =SUM(AH3:AO3) -> 0
A4: Fertigung 500 W/m² | B4: - | C4: - | D4: - | E4: - | F4: - | G4: - | H4: - | I4: - | K4: Fertigung 500 W/m² | T4: 0 | V4: Fertigung 500 W/m² | W4: - | X4: - | Y4: - | Z4: - | AA4: - | AB4: - | AC4: - | AD4: - | AE4: 0 | AG4: Fertigung 500 W/m² | AH4: - | AI4: - | AJ4: - | AK4: - | AL4: - | AM4: - | AN4: - | AO4: - | AP4: 0
A5: Montage | B5: 1 | C5: 1 | D5: 1 | E5: - | F5: - | G5: - | H5: - | I5: - | K5: Montage | L5: 3 | T5: 3 | V5: Montage | W5: =IF($T$10>0,L5/$T$10,0) -> 0.03703703704 | X5: =IF($T$10>0,M5/$T$10,0) -> 0 | Y5: =IF($T$10>0,N5/$T$10,0) -> 0 | Z5: - | AA5: - | AB5: - | AC5: - | AD5: - | AE5: 0.03703703704 | AG5: Montage | AH5: 0.03703703704 | AI5: 0 | AJ5: 0 | AK5: - | AL5: - | AM5: - | AN5: - | AO5: - | AP5: 0.03703703704
A6: Lager | B6: 1 | C6: 1 | D6: 1 | E6: 1 | F6: - | G6: - | H6: - | I6: - | K6: Lager | L6: 6 | O6: 9 | T6: 15 | V6: Lager | W6: 0.07407407407 | X6: 0 | Y6: 0 | Z6: =IF($T$10>0,O6/$T$10,0) -> 0.1111111111 | AA6: - | AB6: - | AC6: - | AD6: - | AE6: 0.1851851852 | AG6: Lager | AH6: 0.07407407407 | AI6: 0 | AJ6: 0 | AK6: 0.1111111111 | AL6: - | AM6: - | AN6: - | AO6: - | AP6: 0.1851851852
A7: Büro- und Sozialräume | B7: 1 | C7: 0 | D7: 0 | E7: 1 | F7: 0 | G7: - | H7: - | I7: - | K7: Büro- und Sozialräume | L7: 3 | P7: 4 | T7: 7 | V7: Büro- und Sozialräume | W7: 0.03703703704 | X7: 0 | Y7: 0 | Z7: 0 | AA7: =IF($T$10>0,P7/$T$10,0) -> 0.04938271605 | AB7: - | AC7: - | AD7: - | AE7: 0.08641975309 | AG7: Büro- und Sozialräume | AH7: 0.03703703704 | AI7: 0 | AJ7: 0 | AK7: 0 | AL7: 0 | AM7: - | AN7: - | AO7: - | AP7: 0.03703703704
A8: Technik | B8: 0 | C8: 0 | D8: 0 | E8: 0 | F8: 1 | G8: 0 | H8: - | I8: - | K8: Technik | O8: 2 | Q8: 2 | T8: 4 | V8: Technik | W8: 0 | X8: 0 | Y8: 0 | Z8: 0.02469135802 | AA8: 0 | AB8: =IF($T$10>0,Q8/$T$10,0) -> 0.02469135802 | AC8: - | AD8: - | AE8: 0.04938271605 | AG8: Technik | AH8: 0 | AI8: 0 | AJ8: 0 | AK8: 0 | AL8: 0 | AM8: 0 | AN8: - | AO8: - | AP8: 0
A9: Außenbereiche | B9: 0 | C9: 1 | D9: 1 | E9: 1 | F9: 0 | G9: 0 | H9: 1 | I9: - | K9: Außenbereiche | L9: 8 | O9: 12 | P9: 15 | Q9: 13 | R9: 4 | T9: =SUM(L9:S9) -> 52 | V9: Außenbereiche | W9: 0.0987654321 | X9: 0 | Y9: 0 | Z9: 0.1481481481 | AA9: 0.1851851852 | AB9: 0.1604938272 | AC9: =IF($T$10>0,R9/$T$10,0) -> 0.04938271605 | AD9: - | AE9: =SUM(W9:AD9) -> 0.6419753086 | AG9: Außenbereiche | AH9: 0 | AI9: 0 | AJ9: 0 | AK9: 0.1481481481 | AL9: 0 | AM9: 0 | AN9: 0.04938271605 | AO9: - | AP9: =SUM(AH9:AO9) -> 0.1975308642
K10: Summe | L10: =SUM(L2:L9) -> 20 | M10: =SUM(M2:M9) -> 0 | N10: 0 | O10: 23 | P10: 19 | Q10: 15 | R10: 4 | S10: =SUM(S2:S9) -> 0 | T10: =SUM(L2:S9) -> 81 | V10: Summe | W10: =SUM(W2:W9) -> 0.2469135802 | X10: =SUM(X2:X9) -> 0 | Y10: =SUM(Y2:Y9) -> 0 | Z10: =SUM(Z2:Z9) -> 0.2839506173 | AA10: =SUM(AA2:AA9) -> 0.2345679012 | AB10: =SUM(AB2:AB9) -> 0.1851851852 | AC10: =SUM(AC2:AC9) -> 0.04938271605 | AD10: =SUM(AD2:AD9) -> 0 | AE10: =SUM(W2:AD9) -> 1 | AG10: Summe | AH10: =SUM(AH2:AH9) -> 0.1481481481 | AI10: =SUM(AI2:AI9) -> 0 | AJ10: =SUM(AJ2:AJ9) -> 0 | AK10: =SUM(AK2:AK9) -> 0.2592592593 | AL10: =SUM(AL2:AL9) -> 0 | AM10: =SUM(AM2:AM9) -> 0 | AN10: =SUM(AN2:AN9) -> 0.04938271605 | AO10: =SUM(AO2:AO9) -> 0 | AP10: =SUM(AH2:AO9) -> 0.4567901235
